bitfinex-derivatives/quotes_ETHF0:USTF0_20250911
["timestamp","ask_amount","ask_price","bid_price","bid_amount"]
[1757589962434,0.706,4430.4,4430.3,0.5173]
[1757589962635,0.706,4430.4,4430.3,0.7113]
[1757589963331,0.5011,4430.4,4430.3,0.7113]
[1757589964733,0.1255,4431.0,4430.4,0.3155]
[1757589964931,0.706,4430.9,4430.8,0.2018]
[1757589966135,0.706,4430.9,4430.8,0.5173]
[1757589967331,0.706,4430.9,4430.8,0.2018]
[1757589967632,0.706,4430.9,4430.5,0.3155]
[1757589967836,0.3079,4430.8,4430.1,0.3155]
[1757589968939,0.5011,4430.8,4430.7,0.7113]
[1757589969533,0.706,4430.8,4430.7,0.7113]
[1757589969839,0.706,4430.8,4430.7,0.3958]
[1757589970141,0.706,4430.8,4430.7,0.7113]
[1757589973539,0.1255,4431.0,4430.0,20.10918]
[1757589973540,0.706,4431.4,4431.3,0.3958]
[1757589973740,1.27798524,4431.4,4431.3,0.7113]
[1757589974135,1.27798524,4431.4,4431.3,0.3958]
[1757589975141,0.706,4431.4,4431.3,0.3958]
[1757589976145,0.706,4431.4,4431.3,0.2018]
[1757589979049,0.706,4431.4,4431.1,0.3155]
[1757589980545,0.706,4431.4,4430.5,0.53453]
[1757589980749,0.706,4431.4,4430.7,0.3155]
[1757589981343,0.706,4431.4,4431.3,0.7113]
[1757589982548,0.706,4431.4,4431.3,0.2018]
[1757589984952,0.706,4431.4,4431.0,0.3155]
[1757589987359,0.706,4431.4,4431.3,0.1951]
[1757589989972,0.706,4431.4,4430.6,0.3106]
[1757589990159,0.7092,4430.8,4430.7,0.5057]
[1757589990362,0.4103,4430.2,4430.1,0.1951]
[1757589990562,0.7092,4430.2,4430.1,0.1951]
[1757589990759,0.7092,4430.2,4430.1,0.7148]
[1757589994167,0.7092,4430.2,4430.1,0.1951]
[1757589999568,0.7092,4430.2,4429.9,0.3106]
[1757589999768,0.2107,4429.6,4429.5,0.3231]
[1757589999972,0.5096,4429.6,4429.5,0.4042]
[1757590000178,0.7092,4429.6,4429.5,0.4042]
[1757590000371,0.7092,4429.6,4429.5,0.7148]
[1757590001780,0.5096,4429.6,4429.5,0.7148]
[1757590001972,0.2989,4429.9,4429.5,0.5211]
[1757590002169,0.5316,4430.0,4429.9,0.4042]
[1757590002373,0.8305,4430.0,4429.9,0.7148]
[1757590004678,0.7092,4430.0,4429.9,0.7148]
[1757590004882,0.2107,4430.5,4430.4,0.7148]
[1757590005382,0.7092,4430.5,4430.4,0.7148]
[1757590005683,0.8305,4430.5,4430.4,0.7148]
[1757590011787,0.5096,4430.5,4430.4,0.7148]
[1757590012086,0.4103,4431.0,4430.9,0.7148]
[1757590012684,0.7092,4431.0,4430.9,0.7148]
[1757590012885,0.8305,4431.0,4430.9,0.7148]
[1757590013684,0.8305,4431.0,4430.6,14.3]
[1757590013889,0.4103,4430.7,4430.6,14.3]
[1757590014077,0.7092,4430.7,4430.6,0.1951]
[1757590016087,0.7092,4430.7,4430.6,0.5057]
[1757590018182,0.7092,4430.7,4430.6,0.7148]
[1757590018387,0.5096,4430.7,4430.6,0.7148]
[1757590018687,0.2973,4430.9,4430.8,0.4068]
[1757590018992,0.2973,4430.9,4430.8,0.7031]
[1757590019388,0.505,4430.9,4430.8,0.7031]
[1757590024192,0.7161,4430.9,4430.8,0.7031]
[1757590024691,0.7161,4430.9,4430.8,0.4068]
[1757590024996,0.7161,4430.9,4430.5,0.2963]
[1757590025291,0.7161,4430.9,4430.1,0.2963]
[1757590025691,0.505,4430.4,4430.3,0.7031]
[1757590025885,0.1216,4431.0,4430.4,0.2963]
[1757590025886,0.2973,4430.9,4430.4,0.2963]
[1757590026190,0.7161,4430.9,4430.8,0.7031]
[1757590026392,0.4188,4430.9,4430.3,0.2963]
[1757590026588,0.2077,4430.4,4430.3,0.7031]
[1757590026787,0.505,4430.4,4430.3,0.7031]
[1757590027794,0.2973,4430.9,4430.4,0.2963]
[1757590028095,0.8377,4431.0,4430.9,0.2125]
[1757590029100,0.8377,4431.0,4430.9,0.5088]
[1757590030196,0.8377,4431.0,4430.9,0.2125]
[1757590030898,0.8377,4431.0,4430.9,0.5088]
[1757590031199,0.7161,4431.0,4430.9,0.7031]
[1757590032101,0.8377,4431.0,4430.9,0.7031]
[1757590033106,0.7161,4431.0,4430.9,0.7031]
[1757590033298,0.505,4431.0,4430.9,0.7031]
[1757590034204,0.7161,4431.0,4430.9,0.7031]
[1757590036202,0.8377,4431.0,4430.9,0.7031]
[1757590040503,0.505,4431.4,4431.3,0.4068]
[1757590040807,0.505,4431.4,4431.3,0.7031]
[1757590041008,0.7161,4431.4,4431.3,0.7031]
[1757590041901,0.6161,4431.4,4431.3,0.7031]
[1757590044405,0.6161,4431.4,4431.0,0.2963]
[1757590044802,0.6161,4431.4,4430.5,0.1278]
[1757590044994,0.6161,4431.4,4430.6,0.2963]
[1757590049303,0.6161,4431.4,4431.3,0.2125]
[1757590049502,0.6161,4431.4,4431.3,0.7058]
[1757590050506,0.6161,4431.4,4430.5,0.1278]
[1757590050708,0.3151,4431.3,4430.7,0.2935]
[1757590051207,0.5264,4430.8,4430.7,0.7014]
[1757590053298,0.7403,4430.8,4430.7,0.7014]
[1757590058509,0.4252,4430.8,4430.3,0.2935]
[1757590058712,0.2113,4430.4,4430.3,0.7014]
[1757590059012,0.5264,4430.4,4430.3,0.7014]
[1757590059511,0.1244,4431.5,4430.3,0.4079]
[1757590059812,0.7403,4431.3,4431.2,0.5016]
[1757590060013,1.31422008,4431.3,4431.2,0.5016]
[1757590060404,1.31422008,4431.3,4431.2,0.2081]
[1757590065315,1.31422008,4431.3,4431.0,0.2935]
[1757590065516,0.7403,4431.3,4431.0,0.2935]
[1757590065815,0.7403,4431.3,4430.6,0.2935]
[1757590069618,0.4252,4430.7,4430.3,5.275]
[1757590069916,0.3151,4430.6,4430.5,0.5016]
[1757590070117,0.7403,4430.6,4430.5,0.5016]
[1757590071617,0.7403,4430.6,4430.5,0.2081]
[1757590072018,0.7403,4430.6,4430.5,0.5016]
[1757590072819,0.7403,4430.6,4430.5,0.2081]
[1757590073818,0.7403,4430.6,4430.5,0.5016]
[1757590081620,0.4095,4430.2,4430.1,0.5317]
[1757590081923,0.7063,4430.2,4430.1,0.5317]
[1757590082718,0.2968,4430.1,4429.6,14.3]
[1757590082918,0.7063,4430.1,4430.0,0.5317]
[1757590083526,0.7063,4430.1,4430.0,0.733]
[1757590084322,0.7063,4430.1,4430.0,0.2124]
[1757590084524,0.4095,4429.8,4429.7,0.2124]
[1757590084721,0.7063,4429.8,4429.7,0.733]
[1757590090022,0.2098,4429.8,4429.7,0.733]
[1757590090216,0.1207,4430.5,4430.0,0.5403]
[1757590090425,0.2968,4430.4,4430.0,0.5403]
[1757590090620,0.2098,4430.2,4430.1,0.3193]
[1757590090920,0.5066,4430.2,4430.1,0.733]
[1757590091117,0.7063,4430.2,4430.1,0.733]
[1757590093327,0.2968,4430.1,4429.6,14.6193]
[1757590093626,0.2098,4429.2,4429.1,0.5317]
[1757590093924,0.7063,4429.2,4429.1,0.733]
[1757590094530,0.2098,4429.2,4429.1,0.733]
[1757590095330,0.5066,4429.2,4429.1,0.733]
[1757590104042,0.7063,4429.2,4429.1,0.733]
[1757590109450,0.7063,4429.2,4429.1,15.033]
[1757590110956,0.7063,4429.2,4429.1,0.733]
[1757590120758,0.5066,4429.2,4429.1,0.733]
[1757590121056,0.3009,4429.9,4429.2,0.3035]
[1757590121361,0.5057,4429.9,4429.8,0.6987]
[1757590121657,0.7018,4429.9,4429.8,0.6987]
[1757590124757,0.5057,4429.9,4429.8,0.6987]
[1757590124960,0.3009,4430.9,4430.2,0.3952]
[1757590125155,0.2048,4430.4,4430.3,0.6987]
[1757590125461,0.7018,4430.4,4430.3,0.6987]
[1757590130264,0.5057,4430.4,4430.3,0.6987]
[1757590133972,0.7018,4430.4,4430.3,0.6987]
[1757590134161,0.3009,4430.3,4430.1,14.6035]
[1757590134466,0.7018,4430.2,4430.1,14.8017]
[1757590134668,0.7018,4430.2,4430.1,0.5017]
[1757590135564,0.7018,4430.2,4430.1,0.6987]
[1757590140168,0.5057,4430.2,4430.1,0.6987]
[1757590140471,0.2048,4430.2,4430.1,0.6987]
[1757590140667,0.7172,4430.9,4430.8,0.3967]
[1757590140971,0.7172,4430.9,4430.8,0.6903]
[1757590142575,0.7172,4430.9,4430.7,0.3341]
[1757590142877,0.7172,4430.9,4430.7,0.0405]
[1757590143673,0.94289,4430.9,4430.7,0.0405]
[1757590143875,0.7172,4430.9,4430.7,0.0405]
[1757590144475,0.94289,4430.9,4430.7,0.0405]
[1757590144666,0.7172,4430.9,4430.7,0.0405]
[1757590145367,0.4206,4430.0,4429.8,0.0505]
[1757590145571,0.7172,4429.9,4429.8,0.0505]
[1757590145777,0.7172,4429.9,4429.4,0.2936]
[1757590147184,0.7172,4429.9,4429.1,0.2936]
[1757590149275,0.7172,4429.9,4429.3,0.2936]
[1757590149662,0.7172,4429.4,4429.3,0.4956]
[1757590150077,0.7172,4429.4,4429.3,0.6903]
[1757590150573,0.2142,4429.4,4429.3,0.6903]
[1757590151068,0.3022,4429.9,4429.4,0.2936]
[1757590151274,0.5164,4429.5,4429.4,0.6903]
[1757590152178,0.7172,4429.5,4429.4,0.6903]
[1757590152680,0.8356,4429.5,4429.4,0.4956]
[1757590152878,0.8356,4429.5,4429.3,0.2936]
[1757590153875,0.8356,4429.5,4429.2,0.0505]
[1757590154080,0.8356,4429.5,4429.4,0.4956]
[1757590155078,0.8356,4429.5,4429.2,0.0505]
[1757590155281,0.8356,4429.5,4429.3,0.2936]
[1757590156478,0.8356,4429.5,4429.2,0.0505]
[1757590157070,0.8356,4429.5,4429.4,0.4956]
[1757590157481,0.8356,4429.5,4429.2,0.0505]
[1757590158380,0.8356,4429.5,4429.2,0.3441]
[1757590158774,0.8356,4429.5,4429.2,0.0505]
[1757590159377,0.8356,4429.5,4429.3,0.2936]
[1757590159581,0.8356,4429.5,4429.4,0.202]
[1757590159882,0.8356,4429.5,4429.4,0.4956]
[1757590160578,0.7172,4429.5,4429.4,0.6903]
[1757590163082,0.8356,4429.5,4429.4,0.202]
[1757590164479,0.8356,4429.5,4429.4,0.4956]
[1757590164781,0.8356,4429.5,4429.4,0.202]
[1757590165080,0.8356,4429.5,4429.2,0.3441]
[1757590165978,0.8356,4429.5,4429.2,0.0505]
[1757590166174,0.8356,4429.5,4429.3,0.2936]
[1757590166981,0.8356,4429.5,4429.4,0.4956]
[1757590167580,0.8356,4429.5,4429.4,0.202]
[1757590167972,0.8356,4429.5,4429.4,0.5014]
[1757590170478,0.7172,4429.5,4429.4,0.7136]
[1757590173087,0.839,4429.5,4428.7,16.31916993]
[1757590173284,0.839,4429.5,4428.9,0.2994]
[1757590173680,0.6989,4429.4,4429.3,0.2056]
[1757590173885,0.6989,4429.4,4429.3,0.505]
[1757590174290,0.6989,4429.4,4429.3,0.7172]
[1757590176183,0.4078,4429.1,4429.0,0.2994]
[1757590176381,0.6989,4429.1,4429.0,0.7172]
[1757590177086,0.6989,4429.1,4429.0,0.8356]
[1757590181294,0.6989,4429.1,4429.0,0.7172]
[1757590187301,0.2911,4429.4,4429.0,0.5362]
[1757590187504,0.4932,4429.4,4429.3,0.7172]
[1757590187800,0.6989,4429.4,4429.3,0.7172]
[1757590192001,0.6989,4429.4,4429.3,0.505]
[1757590195705,0.6989,4429.4,4429.3,0.7172]
[1757590200406,0.4079,4429.5,4429.4,0.6988]
[1757590200603,0.7034,4429.5,4429.4,0.6988]
[1757590207615,0.1184,4430.0,4429.4,0.6988]
[1757590207822,0.2955,4429.8,4429.7,0.6988]
[1757590208023,0.5031,4429.8,4429.7,0.6988]
[1757590208321,0.7034,4429.8,4429.7,0.6988]
[1757590210225,0.2076,4429.8,4429.7,0.6988]
[1757590210614,0.2955,4430.0,4429.7,0.6988]
[1757590210814,0.2955,4430.4,4429.8,0.2903]
[1757590211122,0.5031,4429.9,4429.8,0.6988]
[1757590217133,0.7034,4429.9,4429.8,0.6988]
[1757590223846,0.5031,4429.9,4429.8,0.6988]
[1757590224340,0.1184,4430.5,4429.8,0.7493]
[1757590224642,0.5031,4430.4,4430.3,0.6988]
[1757590225039,0.2955,4430.7,4430.3,0.4085]
[1757590225241,0.2955,4430.7,4430.4,0.2903]
[1757590225446,0.8218,4431.0,4430.9,0.4932]
[1757590225640,1.27648133,4431.0,4430.9,0.6988]
[1757590225837,0.7034,4431.0,4430.9,0.6988]
[1757590226743,0.29780022,4432.0,4430.9,0.6988]
[1757590226744,0.2955,4431.3,4430.9,0.6988]
[1757590226939,0.7034,4431.4,4431.3,0.6988]
[1757590227549,0.7034,4431.4,4431.3,0.4932]
[1757590228439,0.7034,4431.4,4431.3,0.6879]
[1757590241153,0.2076,4431.4,4431.3,0.6879]
[1757590241651,0.5033,4431.4,4431.3,0.6879]
[1757590243744,0.7088,4431.4,4431.3,0.6879]
[1757590250154,0.7088,4431.4,4430.6,5.275]
[1757590250355,0.5405,4430.5,4430.4,0.312]
[1757590250559,0.5405,4430.5,4430.0,0.1176]
[1757590250560,0.8362,4430.5,4430.0,0.1176]
[1757590251455,0.8362,4430.5,4430.1,0.312]
[1757590251653,0.8362,4430.5,4430.0,0.1176]
[1757590252171,0.8362,4430.5,4430.1,0.312]
[1757590252859,0.8362,4430.5,4429.8,0.0505]
[1757590253158,0.8362,4430.5,4429.9,0.312]
[1757590255055,0.8362,4430.0,4429.9,0.312]
[1757590255252,0.8362,4430.0,4429.8,0.3625]
[1757590255652,0.8362,4430.0,4429.9,0.312]
[1757590255966,0.8362,4430.0,4429.9,0.5259]
[1757590256151,0.8362,4430.0,4429.9,0.7206]
[1757590256152,0.7144,4430.0,4429.9,0.7206]
[1757590261255,0.8362,4430.0,4429.9,0.2139]
[1757590261458,0.8362,4430.0,4429.8,0.0505]
[1757590262054,0.8362,4430.0,4429.8,0.3468]
[1757590262955,0.8362,4430.0,4429.9,0.2963]
[1757590264566,0.8362,4430.0,4429.9,0.5084]
[1757590264957,0.7144,4430.0,4429.9,0.7062]
[1757590266371,0.8362,4430.0,4429.9,0.7062]
[1757590271770,0.8362,4430.0,4429.1,0.2963]
[1757590273574,0.7076,4428.7,4428.6,0.7062]
[1757590275874,0.1968,4428.7,4428.6,0.7062]
[1757590278773,0.4032,4428.7,4428.6,0.7062]
[1757590278973,0.7076,4428.7,4428.6,0.7062]
[1757590280680,0.1968,4428.7,4428.6,0.7062]
[1757590281380,0.7076,4428.7,4428.6,0.7062]
[1757590311197,0.7076,4428.7,4428.6,0.5084]
[1757590318895,0.7076,4428.7,4428.0,14.4202]
[1757590319094,0.1218,4429.0,4428.1,0.3051]
[1757590319095,0.3105,4428.6,4428.1,0.3051]
[1757590319295,0.1218,4429.0,4428.1,0.5088]
[1757590319296,0.7194,4428.2,4428.1,0.5088]
[1757590320199,0.7194,4428.2,4428.1,0.7143]
[1757590320791,0.5139,4428.2,4428.1,0.7143]
[1757590321001,0.3105,4428.4,4428.1,0.7143]
[1757590321392,0.3105,4428.4,4428.0,0.1285]
[1757590321393,0.3105,4428.4,4428.2,0.3051]
[1757590321702,0.5139,4428.4,4428.3,0.7143]
[1757590324095,0.7194,4428.4,4428.3,0.7143]
[1757590324301,0.7194,4428.4,4428.3,0.5088]
[1757590326809,0.4089,4428.4,4427.9,0.3051]
[1757590327004,0.7194,4428.3,4428.2,0.2037]
[1757590327214,0.7194,4428.3,4428.2,0.5088]
[1757590328006,0.7194,4428.3,4428.2,0.7143]
[1757590330295,0.7194,4428.3,4427.6,0.3051]
[1757590330500,0.2034,4427.8,4427.7,0.7143]
[1757590330708,0.5139,4427.8,4427.7,0.94013]
[1757590330903,0.2034,4427.8,4427.7,0.7143]
[1757590331104,0.3105,4428.1,4427.7,0.7143]
[1757590331304,0.1166,4428.5,4427.8,0.3051]
[1757590331501,0.7194,4428.4,4428.3,0.5088]
[1757590331902,0.7194,4428.4,4428.3,0.7143]
[1757590334015,0.5139,4428.4,4428.3,0.7143]
[1757590334915,0.1218,4429.0,4428.3,0.7143]
[1757590335113,1.09256853,4428.9,4428.8,0.7143]
[1757590336005,1.29806853,4428.9,4428.8,0.7143]
[1757590336902,1.29806853,4428.9,4428.1,0.3051]
[1757590337105,0.4089,4428.9,4428.1,0.22581]
[1757590337305,0.2034,4428.3,4428.2,0.63501]
[1757590337609,0.5139,4428.3,4428.2,0.7143]
[1757590337804,0.7194,4428.3,4428.2,0.7143]
[1757590345616,0.7194,4428.3,4428.2,0.2037]
[1757590346022,0.7194,4428.3,4428.2,0.5088]
[1757590346922,0.3105,4428.2,4427.7,0.3051]
[1757590347121,0.2034,4427.8,4427.7,0.7143]
[1757590347421,0.416,4427.8,4427.4,0.3059]
[1757590347627,0.8469,4427.5,4427.4,0.5038]
[1757590348120,0.7208,4427.5,4427.4,0.7055]
[1757590349016,0.428,4428.0,4427.5,0.4272]
[1757590349323,0.545,4428.0,4427.9,0.1979]
[1757590349624,0.8469,4428.0,4427.9,0.5038]
[1757590349824,0.8469,4428.0,4427.5,0.1213]
[1757590350024,0.8469,4428.0,4427.6,0.3059]
[1757590350323,0.545,4428.0,4427.2,0.3059]
[1757590350525,0.5082,4427.3,4427.2,0.7055]
[1757590351019,0.1261,4428.0,4427.6,0.3059]
[1757590351226,0.545,4428.0,4427.9,0.1979]
[1757590351617,0.8469,4428.0,4427.9,0.1979]
[1757590352626,0.8469,4428.0,4427.7,0.3059]
[1757590353031,0.8469,4428.0,4427.6,0.3059]
[1757590353221,0.8469,4428.0,4427.5,0.1213]
[1757590353526,0.8469,4428.0,4427.6,0.3059]
[1757590354336,0.8469,4428.0,4427.1,14.3]
[1757590354525,0.3019,4427.9,4427.2,0.3059]
[1757590355034,0.5082,4427.3,4427.2,0.7055]
[1757590355235,0.7208,4427.3,4427.2,0.7055]
[1757590356528,0.7208,4427.3,4426.9,0.3059]
[1757590356737,0.7208,4427.3,4426.8,0.3059]
[1757590356927,0.7208,4427.3,4426.8,14.6059]
[1757590357134,0.3019,4427.2,4427.1,0.1979]
[1757590357329,0.7208,4427.2,4427.1,0.1979]
[1757590357529,0.7208,4427.2,4427.1,0.5038]
[1757590358737,0.5082,4427.1,4427.0,0.7055]
[1757590359035,0.7208,4427.1,4427.0,0.7055]
[1757590360636,0.2063,4426.7,4426.6,0.7055]
[1757590360938,0.7208,4426.7,4426.6,0.7055]
[1757590362137,0.4189,4426.7,4426.2,0.3059]
[1757590362338,0.1261,4427.0,4426.2,0.3059]
[1757590362339,0.2063,4426.3,4426.2,0.7055]
[1757590362633,0.5082,4426.3,4426.2,0.7055]
[1757590362940,0.7208,4426.3,4426.2,0.7055]
[1757590364835,0.7208,4426.3,4426.2,0.5038]
[1757590365038,0.7208,4426.3,4426.2,0.7055]
[1757590365540,0.2063,4426.3,4426.2,0.7055]
[1757590365737,0.3019,4426.5,4426.2,0.7055]
[1757590365938,0.3019,4426.5,4426.2,0.3996]
[1757590366140,0.5082,4426.4,4426.3,0.7055]
[1757590366333,0.7208,4426.4,4426.3,0.7055]
[1757590367639,0.5082,4426.4,4426.3,0.7055]
[1757590369246,0.7208,4426.4,4426.3,0.7055]
[1757590370043,0.5082,4426.4,4426.3,0.7055]
[1757590370239,0.7208,4426.4,4426.3,0.7055]
[1757590370944,0.3019,4426.9,4426.3,0.3996]
[1757590371145,0.7208,4426.9,4426.8,0.7055]
[1757590374951,0.7208,4426.9,4426.8,0.5038]
[1757590375145,0.7208,4426.9,4426.8,0.7055]
[1757590375345,0.7208,4426.9,4426.0,14.4285]
[1757590375346,0.4189,4426.9,4426.1,0.3059]
[1757590375550,0.3019,4426.8,4426.1,0.22591]
[1757590375749,0.5082,4426.3,4426.2,0.7055]
[1757590375947,0.7208,4426.3,4426.2,0.7055]
[1757590378247,0.7208,4426.3,4426.2,0.5038]
[1757590380552,0.2926,4426.9,4426.2,0.408]
[1757590380758,0.2085,4426.4,4426.3,0.7087]
[1757590380954,0.5011,4426.4,4426.3,0.7087]
[1757590382058,0.7088,4426.4,4426.3,0.7087]
[1757590385554,0.7088,4426.4,4425.8,14.3]
[1757590385860,0.7088,4426.0,4425.9,0.7087]
[1757590387354,0.2926,4426.9,4426.4,0.3023]
[1757590387555,0.2926,4427.4,4426.9,0.3023]
[1757590387756,0.5011,4427.4,4427.3,0.7087]
[1757590388056,32.8787,4428.5,4427.6,0.7087]
[1757590388259,0.2926,4428.3,4427.7,0.3023]
[1757590388562,0.5011,4427.8,4427.7,0.7087]
[1757590388855,0.7088,4426.6,4426.5,2.01916993]
[1757590389053,0.57761238,4426.6,4426.4,0.4064]
[1757590389255,0.5011,4427.0,4426.9,0.4064]
[1757590389563,0.7088,4427.9,4427.8,0.7087]
[1757590389863,0.2085,4427.9,4427.8,0.7087]
[1757590390048,0.5011,4427.9,4427.8,0.7087]
[1757590390248,0.7088,4427.9,4427.8,0.7087]
[1757590393163,0.2926,4428.9,4427.9,0.3023]
[1757590393362,0.7088,4428.9,4428.8,0.7087]
[1757590393755,0.1217,4429.5,4428.8,0.7087]
[1757590393960,0.5011,4429.4,4429.3,0.4064]
[1757590394161,0.2085,4429.4,4429.3,0.7087]
[1757590394461,0.2926,4430.1,4429.6,0.4064]
[1757590394784,0.5011,4430.1,4430.0,0.4064]
[1757590394965,0.2085,4430.1,4430.0,0.8355]
[1757590395264,0.077,4430.4,4430.1,0.3023]
[1757590395465,32.536,4431.0,4430.9,0.4064]
[1757590395653,0.23,4431.3,4431.0,0.4291]
[1757590395858,0.7311,4431.3,4431.2,0.7087]
[1757590396059,0.9388,4431.3,4431.2,0.7087]
[1757590397058,0.9388,4431.3,4430.5,0.1268]
[1757590397262,0.9388,4431.3,4430.6,0.3023]
[1757590398068,0.6462,4431.3,4430.5,14.3]
[1757590398267,0.7088,4430.6,4430.5,14.4963]
[1757590398462,0.7088,4430.6,4430.5,15.0087]
[1757590399659,0.4162,4430.1,4430.0,0.5332]
[1757590399860,0.7088,4430.1,4430.0,0.1963]
[1757590401559,0.4162,4429.8,4429.7,0.4986]
[1757590401754,0.7088,4429.8,4429.7,0.4986]
[1757590401959,0.7088,4429.8,4429.7,0.7087]
[1757590402360,0.7088,4429.8,4429.7,0.1963]
[1757590402558,0.4162,4429.8,4429.0,0.1268]
[1757590402759,0.7088,4429.7,4429.6,0.4986]
[1757590403568,0.7088,4429.7,4429.6,0.7087]
[1757590406268,0.1217,4430.5,4429.6,0.7087]
[1757590406571,0.7088,4430.4,4430.3,0.4064]
[1757590406765,0.7088,4430.4,4430.3,0.7087]
[1757590406969,0.2926,4430.9,4430.4,0.3023]
[1757590407158,0.7022,4430.9,4430.8,0.3989]
[1757590407363,0.4096,4430.9,4430.1,14.3]
[1757590407564,0.3169,4430.8,4430.2,0.2989]
[1757590408271,0.3169,4430.2,4430.1,14.3]
[1757590408472,0.4343,4428.5,4427.5,0.4243]
[1757590408659,0.4343,4428.5,4427.0,0.1254]
[1757590408660,0.1982,4426.6,4426.5,0.3221]
[1757590408865,0.3169,4427.4,4426.5,14.8247]
[1757590409065,0.7162,4427.9,4427.8,0.1967]
[1757590409265,0.2258,4428.4,4427.8,0.3993]
[1757590409266,0.5427,4428.4,4427.8,0.3993]
[1757590409466,0.5427,4428.4,4427.5,0.1254]
[1757590409467,0.2258,4428.4,4428.3,0.6982]
[1757590411675,0.424,4428.4,4428.3,0.6982]
[1757590411865,0.7409,4428.4,4428.3,0.6982]
[1757590412673,0.942,4428.4,4428.3,0.6982]
[1757590413877,0.424,4428.4,4428.3,0.6982]
[1757590415579,0.942,4428.4,4428.3,0.6982]
[1757590415778,0.424,4428.4,4428.3,0.6982]
[1757590415976,0.2258,4428.4,4428.3,0.6982]
[1757590416479,0.2258,4428.4,4428.3,4.6982]
[1757590416673,0.5479,4429.6,4428.4,0.2989]
[1757590416874,0.9472,4429.6,4429.2,0.2989]
[1757590417077,0.1174,4429.5,4429.2,0.2989]
[1757590417278,0.7162,4429.3,4429.2,0.4956]
[1757590418578,0.7162,4429.3,4429.2,0.1967]
[1757590419176,0.7162,4429.3,4429.2,0.4956]
[1757590419678,0.7162,4429.3,4429.2,0.6982]
[1757590420171,0.3169,4429.9,4429.3,0.2989]
[1757590420372,0.1982,4429.4,4429.3,0.6982]
[1757590420566,0.7162,4429.4,4429.3,0.6982]
[1757590420772,0.7162,4429.4,4429.3,0.1967]
[1757590421975,0.7162,4429.4,4429.3,0.6982]
[1757590422980,0.3993,4429.4,4429.3,0.6982]
[1757590423481,0.7162,4429.4,4429.3,0.6982]
[1757590427282,1.30116227,4429.4,4429.3,0.6982]
[1757590428278,1.30140051,4429.4,4429.3,0.6982]
[1757590428790,1.30140051,4429.4,4428.5,0.1254]
[1757590428791,0.7162,4428.8,4428.7,0.6982]
[1757590430377,0.3169,4429.3,4428.8,0.2989]
[1757590430583,0.78365802,4429.2,4429.1,0.3993]
[1757590430788,1.30165802,4429.2,4429.1,0.6982]
[1757590434583,0.78365802,4429.2,4429.1,0.6982]
[1757590434786,1.30165802,4429.2,4429.1,0.6982]
[1757590437285,0.7162,4429.2,4429.1,0.6982]
[1757590438092,0.3484,4430.0,4429.1,0.6982]
[1757590438093,0.3155,4429.6,4429.1,0.6982]
[1757590438288,0.5128,4429.6,4429.5,0.8456]
[1757590438784,0.1973,4429.6,4429.5,0.8456]
[1757590439184,0.5128,4429.6,4429.5,0.8456]
[1757590439491,0.7103,4429.6,4429.5,0.7238]
[1757590441094,0.7103,4429.6,4429.5,0.8456]
[1757590441586,0.1174,4430.5,4429.5,0.8456]
[1757590441797,1.29680847,4430.4,4430.3,0.5261]
[1757590441987,0.7103,4430.4,4430.3,0.5261]
[1757590442891,0.7103,4430.4,4430.3,0.7238]
[1757590443193,0.7103,4430.4,4430.3,0.5261]
[1757590443991,0.7103,4430.4,4430.3,0.2105]
[1757590444693,0.7103,4430.4,4430.3,0.5261]
[1757590444894,0.7103,4430.4,4430.1,0.3156]
[1757590445294,0.7103,4430.4,4430.3,0.2105]
[1757590445591,0.7103,4430.4,4430.3,0.5261]
[1757590446491,0.3155,4430.9,4430.4,0.3156]
[1757590446793,0.3155,4430.9,4430.8,0.7238]
[1757590446794,0.1973,4430.9,4430.8,0.7238]
[1757590449399,0.118,4431.5,4431.4,0.7238]
[1757590449400,0.7103,4431.5,4431.4,0.7238]
[1757590450701,0.3155,4432.9,4432.4,0.3156]
[1757590450899,0.3155,4432.9,4432.8,0.7238]
[1757590451092,0.7103,4432.9,4432.8,0.7238]
[1757590451399,0.7103,4432.9,4432.5,0.3156]
[1757590451604,0.7103,4432.9,4432.1,0.3156]
[1757590452507,0.7103,4432.9,4432.8,0.2105]
[1757590453305,0.7103,4432.9,4432.1,0.3156]
[1757590454909,0.3155,4433.0,4432.9,0.7238]
[1757590455201,0.3155,4433.3,4432.9,0.7238]
[1757590455406,0.3155,4433.3,4432.5,0.1218]
[1757590455407,0.5128,4433.3,4433.2,0.4082]
[1757590455602,0.7103,4433.3,4433.2,0.7238]
[1757590457103,0.3155,4433.2,4432.0,0.1218]
[1757590457306,0.5128,4432.2,4432.1,0.7238]
[1757590457512,0.1973,4432.2,4432.1,0.7238]
[1757590458313,0.3155,4432.5,4432.1,0.4082]
[1757590458512,0.3155,4432.5,4432.2,0.3156]
[1757590458808,0.5128,4432.5,4432.4,0.7238]
[1757590459703,0.8283,4432.5,4432.0,0.1218]
[1757590459907,0.8283,4432.5,4432.1,0.3156]
[1757590460609,0.8283,4432.5,4432.0,0.1218]
[1757590460805,0.8283,4432.5,4432.1,0.3156]
[1757590461006,0.8283,4432.5,4432.0,0.1218]
[1757590461413,0.8283,4432.5,4432.4,0.7238]
[1757590461607,0.7103,4432.5,4432.4,0.7238]